Cogmind - Beta 16 @@@ ROGUE MODE // 2025.12.02 @ 05:40:23 Player: Zonalar Result: Destroyed by as-57049 with Assembled Heavy Rifle Performance ------------- Evolutions (0) 0 Regions Visited (0) 0 Robots Destroyed (3) 15 Value Destroyed (20) 20 Prototype IDs (0) 0 Alien Tech Used (0) 0 Bonus (0) 0 TOTAL SCORE: 35 Bonus ------- None Cogmind --------- Core Integrity 0/250 Matter 224/300 Energy 69/100 System Corruption 8% Temperature Cool (0) Movement Core (50) Location -11/Scrapyard Parts ------- > --- POWER (1) -------- (None) > --- PROPULSION (2) --- (None) > --- UTILITY (2) ------ (None) > --- WEAPON (2) ------- Small Laser > --- INVENTORY (5) ---- Light Ion Engine Light Treads Wheel Compact Wheel Improved Terrain Scanner Peak State ------------ > --- POWER ------------ Light Ion Engine > --- PROPULSION ------- Light Treads Light Treads > --- UTILITY ---------- Small Storage Unit Improved Terrain Scanner > --- WEAPON ----------- Medium Laser Assault Rifle > --- INVENTORY -------- Light Ion Engine Light Ion Engine Compact Wheel Compact Wheel Compact Wheel Small Laser [Rating: 9] Favorites ----------- Power Light Ion Engine Engine Light Ion Engine Propulsion Light Treads Treads Light Treads Wheel Compact Wheel Utility Small Storage Unit Device Improved Terrain Scanner Storage Small Storage Unit Weapon Medium Laser Energy Gun Medium Laser Ballistic Gun Assault Rifle Special Weapon Mining Laser Build | -11 ------- Run | Yrd Slots Evolved . | . Power . | . Propulsion . | . Utility . | . Weapon . | . Parts Attached 13 | 13 Power 2 | 2 Engine 2 | 2 Core . | . Reactor . | . Propulsion 4 | 4 Treads 2 | 2 Leg . | . Wheel 2 | 2 Hover . | . Flight . | . Utility 3 | 3 Device 2 | 2 Storage 1 | 1 Processor . | . Hackware . | . Protection . | . Artifact . | . Weapon 4 | 4 Energy Gun 2 | 2 Energy Cannon . | . Ballistic Gun 1 | 1 Ballistic Cannon . | . Launcher . | . Special Weapon 1 | 1 Impact Weapon . | . Slashing Weapon . | . Piercing Weapon . | . Special Melee Weapon . | . Unidentified Prototypes . | . Parts Lost 5 | 5 Power 1 | 1 Propulsion 1 | 1 Utility 1 | 1 Weapon 2 | 2 Highest Loss Streak 5 | 5 To Critical Strikes . | . Average Backups 7 | 7 Power 1 | 1 Propulsion 2 | 2 Utility . | . Weapon 1 | 1 Tool/Special . | . Unused Backups 3 | 3 Power 1 | 1 Propulsion 2 | 2 Utility . | . Weapon . | . Tool/Special . | . Average Slot Usage (%) . | . Peak Build Rating 9 | 9 Average Rating 8 | 8 On Entrance . | . Avg Prop Armor Cover (%) . | . Naked Turns . | . Heaviest Build 13 | 13 Greatest Support 40 | 40 Greatest Overweight (x) . | . Average Overweight (x) . | . Largest Inventory Capacity 8 | 8 Average Capacity 7 | 7 Most Carried 8 | 8 Average Carried 7 | 7 Final Capacity 5 | 5 Final Carried 5 | 5 Class Distribution -------------------- None Dominant Class ---------------- None Resources | -11 ----------- Run | Yrd Matter Collected 314 | 314 Remotely . | . Salvage Created 116 | 116 Parts 9 | 9 Haulers Intercepted . | . Recyclers Shooed . | . Parts Field Recycled . | . Retrieved Matter . | . Parts Self-Destructed . | . Prevented . | . Parts Restored . | . Kills | -11 ------- Run | Yrd Combat Hostiles Destroyed 3 | 3 Guns 3 | 3 Classes Destroyed 3 | 3 Tunneler 2 | 2 Recycler 1 | 1 Assembled 3 | 3 Best Kill Streak 2 | 2 Combat Bots Only 1 | 1 Max Kills in Single Turn 1 | 1 Gunslinging . | . Exploded . | . Melee . | . Uniques/NPCs Destroyed . | . Combat | -11 -------- Run | Yrd Hostile Shots Fired 51 | 51 Missed 11 | 11 Hits 40 | 40 Melee 7 | 7 Projectile 33 | 33 Part Disruptions 3 | 3 Damage Taken 629 | 629 Core 252 | 252 Absorbed by Shields . | . Core Remaining (%) . | . Volleys Fired 103 | 103 Largest 2 | 2 Hottest 120 | 120 Shots Fired 120 | 120 Gun 36 | 36 Cannon . | . Launcher . | . Special 84 | 84 Kinetic 15 | 15 Thermal 105 | 105 Explosive . | . Electromagnetic . | . Robot Hit Streak 14 | 14 Robot Miss Streak 6 | 6 Penetration Max . | . Secondary Targets . | . Shots Hit Robots 20 | 20 Core Hits 9 | 9 Critical Kills . | . Critical Parts Destroyed . | . Critical Strikes 2 | 2 Burn 2 | 2 Melee Attacks . | . Impact . | . Slashing . | . Piercing . | . Sneak Attacks . | . Combat Hostiles . | . Follow-up Attacks . | . Damage Inflicted 238 | 238 Guns 238 | 238 Cannons . | . Explosions . | . Melee . | . Ramming . | . Kinetic 79 | 79 Thermal 159 | 159 Explosive . | . Electromagnetic . | . Impact . | . Slashing . | . Piercing . | . Highest Corruption 8 | 8 Average Corruption 7 | 7 Corruption Purged . | . Corruption Blocked . | . Overload Shots . | . Overflow Damage . | . Projectiles . | . Explosions . | . Melee . | . Knockbacks . | . Impact . | . Kinetic . | . Secondary . | . Self-Inflicted Damage . | . Shots . | . Rammed . | . Targets Rammed . | . Kicked . | . Crushed . | . Highest Temperature 180 | 180 Average Temperature 43 | 43 Received Heat Transfer 360 | 360 Siege Activations . | . Martial Activations . | . Shielding Activations . | . Robots Disrupted . | . Combat Hostiles . | . Robots Corrupted . | . Combat Hostiles . | . Parts Fried . | . Impact Corruptions . | . Robots Melted . | . Combat Hostiles . | . Parts Melted . | . Heat Transferred 629 | 629 Parts Sabotaged . | . Parts Stolen . | . Parts Stripped . | . Power Chain Reactions . | . Alert | -11 ------- Run | Yrd Maximum Alert Level . | . Low Security (%) 100 | 100 Level 1 . | . Level 2 . | . Level 3 . | . Level 4 . | . Level 5 . | . High Security . | . Max Security . | . Peak Influence 5 | 5 Initial . | . Average . | . Influence Increases 15 | 15 Destroy 0b10 Robot/NC 15 | 15 Influence Decreases 15 | 15 Time Decay 15 | 15 Squads Dispatched . | . Investigation . | . Extermination . | . Reinforcement . | . Assault . | . Garrison . | . Intercept . | . Searches Triggered . | . Construction Impeded . | . Haulers Reinforced . | . Active Scanning Responses . | . Cargo Convoy Interrupts . | . Stealth | -11 --------- Run | Yrd Distress Signals . | . Communications Jammed . | . Distress Signals . | . Times Spotted 32 | 32 Peak Tracking Total 20 | 20 Tactical Retreats 2 | 2 Traps | -11 ------- Run | Yrd Traps Triggered . | . Indirectly . | . Trap Hack Attempts . | . Triggered . | . Disarmed . | . Reprogrammed . | . Reused . | . Traps Extracted . | . Installed . | . Triggered . | . Machines | -11 ---------- Run | Yrd Machines Disabled . | . Max in Single Turn . | . Machines Repaired . | . Machines Dismantled . | . Machines Sabotaged . | . Overloaded Fab Kills . | . Hacking | -11 --------- Run | Yrd Machines Accessed . | . Terminals . | . Fabricators . | . Repair Stations . | . Recycling Units . | . Scanalyzers . | . Garrison Access . | . Total Hacks . | . Successful . | . Failed . | . Catastrophic . | . Database Lockouts . | . Manual . | . Terminals . | . Fabricators . | . Repair Stations . | . Recycling Units . | . Scanalyzers . | . Garrison Access . | . Terminal Hacks . | . Fabricator Hacks . | . Repair Station Hacks . | . Recycling Unit Hacks . | . Scanalyzer . | . Garrison Access Hacks . | . Unauthorized Hacks . | . Terminals . | . Fabricators . | . Repair Stations . | . Recycling Units . | . Scanalyzers . | . Garrison Access . | . Data Cores Recovered . | . Used . | . Hacking Detections . | . Full Trace Events . | . Feedback Events . | . Feedback Blocked . | . Robot Schematics Acquired . | . Robots Built . | . Authchips . | . Time . | . Total Robot Build Rating . | . Part Schematics Acquired . | . Parts Built . | . Authchips . | . Time . | . Total Part Build Rating . | . Part Studies Acquired . | . Parts Repaired . | . Time . | . Parts Recycled . | . Recycled Matter . | . Retrieved Matter . | . Retrieved Components . | . Parts Scanalyzed . | . Part Schematics Acquired . | . Parts Damaged . | . Bothacking | -11 ------------ Run | Yrd Used RIF Installer . | . Robots Hacked . | . Non-combat . | . Combat . | . Robot Hacks Applied . | . Relay Couplers Released . | . Fabnet Peak Effective % . | . Robots Rewired . | . Allies Hacked . | . Hacks Repelled . | . Allies | -11 -------- Run | Yrd Total Allies . | . Largest Group . | . Highest-Rated Group . | . Highest-Rated Ally . | . Total Orders . | . Ally Attacks . | . Total Damage . | . Kills . | . Allies Corrupted . | . Allies Melted . | . Intel | -11 ------- Run | Yrd Active Infowar (turns) 4855 | 4855 Terrain 4736 | 4736 Seismic 119 | 119 Robot Analysis Total . | . Derelict Logs Recovered . | . Drone Launches . | . Drone Recoveries . | . Exploration | -11 ------------- Run | Yrd Turns Passed 4998 | 4998 Spaces Moved 1075 | 1075 Core 4 | 4 Treads 539 | 539 Legs . | . Wheels 532 | 532 Hover . | . Flight . | . Fastest Speed 50 | 50 Average Speed 129 | 129 Slowest Speed 160 | 160 Overloaded Moves . | . Propulsion Burnouts . | . Robots Hopped . | . Potential Cave-ins . | . Cave-ins Triggered . | . Exploration Rate (%) 125 | 125 Regions Visited . Branch Regions . Pre-discovered Areas . | . Known Exits Taken . | . Unknown Exits Taken . | . Scrap Searched . | . Spaces Dug 10 | 10 Terrain Destroyed 20 | 20 Melee . | . Projectile 20 | 20 AOE . | . Terrain Rammed . | . Walls Destroyed . | . Machines Disabled . | . Actions | -11 --------- Run | Yrd Total 4385 | 4385 Wait 3173 | 3173 Move 1075 | 1075 Hop . | . Pick Up 15 | 15 Fast Attach 2 | 2 Attach 8 | 8 Detach . | . Swap 7 | 7 Drop 2 | 2 Fire 103 | 103 Melee . | . Ram . | . Kick . | . Crush . | . Escape Stasis . | . Rewire . | . Trap . | . Miscellaneous . | . Route ------- -11/Scrapyard (discovered 1 exit: [*Mat]) History --------- Turn | Location | Event 10 | -11/Scrapyard | Discovered new exit (range 15) 4839 | -11/Scrapyard | Assembled infested the area 4983 | -11/Scrapyard | Core integrity fell below 50% 4993 | -11/Scrapyard | Core integrity fell below 20% 4997 | -11/Scrapyard | Released all parts (4) 4999 | -11/Scrapyard | Destroyed by as-57049 with Assembled Heavy Rifle Last Messages --------------- 04900_ as-59501 destroyed. 04912_ Destroyed Asb. F-torch. 04930_ as-94176 destroyed. 04934_ Acquired 6 matter. 04962_ The unstable cave ceiling collapses. 04967_ Dropped Lgt. Ion Engine. 04976_ Mining Laser destroyed. 04977_ The unstable cave ceiling collapses. 04978_ Lgt. Ion Engine destroyed. 04978_ System corrupted by crushing effect (+4). 04979_ Assault Rifle destroyed. 04983_ Seismic Detector destroyed. 04983_ Com. Wheel destroyed. 04983_ System corrupted by crushing effect (+1). 04983_ System corrupted by crushing effect (+3). 04997_ Released Sml. Storage Unit. 04997_ Released Com. Wheel. 04997_ Released Med. Laser. 04997_ Released Sml. Laser. 04998_ Acquired Sml. Laser. Map ----- +----------------------------------------------------+ | | | | | | | | | | | | | | | ???#??#### #####?????????????????????????????????? | | ?????## #?????????????????????????????????? | | ####### #?????????????????????????????????? | | # #?????????????????????????????????? | | # #?????????????????????????????????? | | # #??##?##?###??????????????????????? | | # ##?## "## ???????????????????????? | | # #### " ??#????????????????????? | | # #### " ???????????????????????? | | # #??? " ???#???????????????????? | | ##### ####??## " ? ??????????????????????? | | #?# ##??### " ??#?????#??#????????????? | | ######### ###???? ????????????????????????? | | # #????# ##???#???????????????????? | | ######### ####??## #?????#????#?????????????? | | ########## ##########!%###????#?????????????????? | | ?# # # # = ##?????????????????????? | | ## # # # *#???##?#?#?????????????? | | ## # @###????????????????????? | | ?# # # # =![#????????????????????? | | # # ########## ###a#?#??????????????????? | | ########## #????#?# ###a####??#???#??????????? | | ########## #?##?#?# # #??#??????????????? | | ####?#?### #??#??????????????? | | #####?### #??##?#???#???????? | | ######### ##?#??### ##???#????????????? | | ## #??####### # #?####?#?#????????? | | ## #?##??### ###?##????#?#?????? | | # #??####### ########?#?##?????? | | # ##??###?## ## # ##?#???????? | | ## ###?###??# %# #?#????????? | | ######### #?##?????# # ! ###???#????? | | ## #####?##?# ##????#????? | | ## # #??###??## # % #??##??????? | | ## # ##?#?????# # ##??#??????? | | ?######### #?#??????# # ##????#????? | | ########## #?#####?## ## ########???# | | ?## # ###??#?### ## ####?##????# | | ??# # ########## ###### ########??????? | | #?# % # #????#?? | | ?## # #????#?# | | ## # ##################### # #?###### | | ?## # #####?####?###?#??#?# #?# | +----------------------------------------------------+ Best States ------------- Heat Dissipation 25 Energy Generation 10 Energy Capacity 125 Matter Stores 300 Matter Capacity 300 Sight Range 16 Terrain Scan Range 16 Terrain Scan Density 10 Evasion (%) 40 Recoil Reduction 2 Item Schematics ----------------- None Robot Schematics ------------------ None Fabricated ------------ Nothing Repaired ---------- Nothing Studied --------- None Alien Tech Used ----------------- None Achievements -------------- Curiosity Killed The Cat Challenges ------------ None Game ------ Seed HellfireWeightTether Manual? 0 Play Time 00:38:12 Cumulative 39.3 hours Start 2025.12.02 @ 05:19:38 End 2025.12.02 @ 05:40:23 Sessions 0 Manual Loads 0 Difficulty Rogue Special Mode None Game No. 16 Rogue 16 Adventurer 0 Explorer 0 Win Type - Total 0 Types 0/0/0/0/0/0/0/0/0/0 Lore% 7 Gallery% 24 Achievement% 17 Wizard Run 0 Options --------- Layout 0 ASCII 0 Keyboard 0 Movement Mouse Keybinds 1 Fullscreen 2 Font 24/Smallcaps Map View 76x50 Zoom Use 2% Tactical HUD 1 Map Filters NONE Filters NONE Steam 1 RUN: 34b3ded4-a2fc-4a3e-bf81-76efd2495a91